[Event "FINAL CAMPEONATO ABSOLUTO DE AJEDREZ CHILE 2018"]
[Site "CENTRO CULTURAL LO PRADO, Chile"]
[Date "2018.02.28"]
[Round "7.3"]
[White "GARCIA CARDENAS, Pablo"]
[Black "LOPEZ SILVA, Hugo Andres"]
[Result "0-1"]
[TimeControl "90 minutos mas 30 segundos de incremento por movida"]
[WhiteTitle "IM"]
[WhiteElo "2454"]
[BlackElo "2389"]

1. d4 {[%clk 01:30:58]} {[%emt 00:00:02]} Nf6 {[%clk 01:19:16]} {[%emt
00:11:44]} 2. c4 {[%clk 01:31:19]} {[%emt 00:00:10]} e6 {[%clk 01:18:53]}
{[%emt 00:00:53]} 3. Nc3 {[%clk 01:31:41]} {[%emt 00:00:08]} Bb4 {[%clk
01:18:53]} {[%emt 00:00:30]} 4. Qc2 {[%clk 01:31:21]} {[%emt 00:00:50]} b6
{[%clk 01:18:30]} {[%emt 00:00:53]} 5. e4 {[%clk 01:31:06]} {[%emt 00:00:46]}
c5 {[%clk 01:16:29]} {[%emt 00:02:31]} 6. d5 {[%clk 01:31:28]} {[%emt
00:00:07]} Qe7 {[%clk 01:16:55]} {[%emt 00:00:03]} 7. Be2 {[%clk 01:31:48]}
{[%emt 00:00:11]} exd5 {[%clk 01:17:20]} {[%emt 00:00:05]} 8. exd5 {[%clk
01:32:13]} {[%emt 00:00:04]} Qe4 {[%clk 01:17:15]} {[%emt 00:00:35]} 9. Qd2
{[%clk 01:32:39]} {[%emt 00:00:05]} Bxc3 {[%clk 01:17:20]} {[%emt 00:00:24]} 10.
Qxc3 {[%clk 01:27:55]} {[%emt 00:05:15]} O-O {[%clk 01:16:27]} {[%emt
00:01:22]} 11. h3 {[%clk 01:08:52]} {[%emt 00:19:33]} d6 {[%clk 00:46:50]}
{[%emt 00:30:07]} 12. Nf3 {[%clk 01:00:11]} {[%emt 00:09:11]} Re8 {[%clk
00:38:47]} {[%emt 00:08:33]} 13. O-O {[%clk 00:34:08]} {[%emt 00:26:33]} Bxh3
{[%clk 00:35:23]} {[%emt 00:03:54]} 14. Re1 {[%clk 00:33:23]} {[%emt 00:01:15]}
Bf5 {[%clk 00:14:59]} {[%emt 00:20:55]} 15. Bf1 {[%clk 00:19:50]} {[%emt
00:14:04]} Qg4 {[%clk 00:12:04]} {[%emt 00:03:25]} 16. Qxf6 {[%clk 00:16:53]}
{[%emt 00:03:26]} gxf6 {[%clk 00:12:33]} {[%emt 00:00:02]} 17. Rxe8+ {[%clk
00:17:17]} {[%emt 00:00:06]} Kg7 {[%clk 00:13:02]} 18. Nh2 {[%clk 00:17:40]}
{[%emt 00:00:08]} Qd4 {[%clk 00:11:07]} {[%emt 00:02:27]} 19. Nf3 {[%clk
00:16:33]} {[%emt 00:01:37]} Qg4 {[%clk 00:11:16]} {[%emt 00:00:20]} 20. Nh2
{[%clk 00:16:59]} {[%emt 00:00:04]} Qd4 {[%clk 00:10:04]} {[%emt 00:01:43]} 21.
Be3 {[%clk 00:08:53]} {[%emt 00:08:35]} Qxb2 {[%clk 00:10:27]} {[%emt
00:00:07]} 22. Re1 {[%clk 00:09:22]} Bd7 {[%clk 00:08:29]} {[%emt 00:02:29]} 23.
Rd8 {[%clk 00:09:51]} {[%emt 00:00:01]} Qb4 {[%clk 00:05:52]} {[%emt 00:03:07]}
24. Nf3 {[%clk 00:09:59]} {[%emt 00:00:21]} b5 {[%clk 00:06:08]} {[%emt
00:00:15]} 25. Bd2 {[%clk 00:10:07]} {[%emt 00:00:22]} Qa4 {[%clk 00:06:24]}
{[%emt 00:00:14]} 26. Re4 {[%clk 00:08:46]} {[%emt 00:01:50]} h5 {[%clk
00:04:12]} {[%emt 00:02:43]} 27. Re7 {[%clk 00:04:26]} {[%emt 00:04:50]} b4
{[%clk 00:01:31]} {[%emt 00:03:11]} 28. Bf4 {[%clk 00:02:10]} {[%emt 00:02:47]}
Nc6 {[%clk 00:00:59]} {[%emt 00:01:02]} 29. Rxa8 {[%clk 00:02:39]} {[%emt
00:00:01]} Nxe7 {[%clk 00:01:24]} {[%emt 00:00:05]} 30. Bxd6 {[%clk 00:03:07]}
{[%emt 00:00:02]} Nc8 {[%clk 00:01:40]} {[%emt 00:00:14]} 31. Bxc5 {[%clk
00:03:01]} {[%emt 00:00:36]} Qa6 {[%emt 00:01:38]} 32. Rb8 {[%clk 00:03:13]}
{[%emt 00:00:17]} Qxa2 {[%clk 00:00:35]} {[%emt 00:00:28]} 33. Rxb4 {[%clk
00:02:48]} {[%emt 00:00:54]} Qa5 {[%clk 00:00:54]} {[%emt 00:00:11]} 34. Rb7
{[%clk 00:03:14]} {[%emt 00:00:04]} Qxc5 {[%clk 00:01:08]} {[%emt 00:00:16]} 35.
Rxd7 {[%clk 00:03:43]} {[%emt 00:00:01]} Nb6 {[%emt 00:01:06]} 36. Rxa7 {[%clk
00:03:57]} {[%emt 00:00:15]} Nxc4 {[%clk 00:00:51]} {[%emt 00:00:12]} 37. Ra4
{[%clk 00:03:37]} {[%emt 00:00:50]} Nb6 {[%clk 00:01:08]} {[%emt 00:00:13]} 38.
Rf4 {[%clk 00:03:18]} {[%emt 00:00:48]} Qxd5 {[%clk 00:00:32]} {[%emt
00:01:07]} 39. Nh4 {[%clk 00:03:37]} {[%emt 00:00:10]} Qg5 {[%clk 00:00:34]}
{[%emt 00:00:28]} 40. g3 {[%clk 00:03:36]} {[%emt 00:00:31]} Nd7 {[%clk
00:00:34]} {[%emt 00:00:30]} 41. Nf5+ {[%clk 00:01:53]} {[%emt 00:02:13]} Kf8
{[%clk 00:00:36]} {[%emt 00:00:28]} 42. Bh3 {[%clk 00:01:54]} {[%emt 00:00:29]}
Ne5 {[%clk 00:00:42]} {[%emt 00:00:24]} 43. Ne3 {[%clk 00:02:02]} {[%emt
00:00:21]} h4 {[%clk 00:00:48]} {[%emt 00:00:25]} 44. Rf5 {[%clk 00:00:31]}
{[%emt 00:00:57]} Qh6 {[%clk 00:00:40]} {[%emt 00:01:42]} 45. g4 {[%clk
00:01:01]} Qg6 {[%clk 00:00:41]} {[%emt 00:00:29]} 46. Kh2 {[%clk 00:00:56]}
{[%emt 00:00:34]} Qh6 {[%clk 00:00:32]} {[%emt 00:00:39]} 47. Kg1 {[%clk
00:01:06]} {[%emt 00:00:20]} Qg6 {[%clk 00:00:32]} {[%emt 00:00:30]} 48. Kh2
{[%clk 00:01:28]} {[%emt 00:00:07]} Nd7 {[%clk 00:00:33]} {[%emt 00:00:30]} 49.
Kg1 {[%clk 00:01:28]} {[%emt 00:00:30]} Qh6 {[%clk 00:00:34]} {[%emt 00:00:29]}
50. Kh2 {[%clk 00:01:26]} {[%emt 00:00:32]} Ke8 {[%clk 00:00:55]} {[%emt
00:00:09]} 51. Kg1 {[%clk 00:01:32]} {[%emt 00:00:24]} Qf8 {[%clk 00:00:41]}
{[%emt 00:00:45]} 52. Nd5 {[%clk 00:01:18]} {[%emt 00:00:43]} Qa3 {[%clk
00:00:51]} {[%emt 00:00:20]} 53. Kg2 {[%clk 00:01:16]} {[%emt 00:00:32]} Qb2
{[%clk 00:00:48]} {[%emt 00:00:32]} 54. Kg1 {[%clk 00:01:15]} {[%emt 00:00:32]}
Qd4 {[%clk 00:00:50]} {[%emt 00:00:28]} 55. Kg2 {[%clk 00:01:18]} {[%emt
00:00:27]} Kf8 {[%clk 00:00:44]} {[%emt 00:00:36]} 56. Kh2 {[%clk 00:01:11]}
{[%emt 00:00:37]} Qe4 {[%clk 00:00:38]} {[%emt 00:00:36]} 57. Kg1 {[%clk
00:01:19]} {[%emt 00:00:22]} Qe1+ {[%clk 00:00:38]} {[%emt 00:00:31]} 58. Kg2
{[%clk 00:01:31]} {[%emt 00:00:18]} Qe4+ {[%clk 00:01:06]} {[%emt 00:00:03]} 59.
Kg1 {[%clk 00:01:57]} {[%emt 00:00:03]} Qe1+ {[%clk 00:00:44]} {[%emt
00:00:51]} 60. Kg2 {[%clk 00:02:21]} {[%emt 00:00:07]} Qe6 {[%clk 00:01:01]}
{[%emt 00:00:13]} 61. Kg1 {[%clk 00:02:13]} {[%emt 00:00:38]} Qc6 {[%clk
00:00:42]} {[%emt 00:00:49]} 62. Kh2 {[%clk 00:01:41]} {[%emt 00:01:02]} Ne5
{[%clk 00:00:40]} {[%emt 00:00:33]} 63. Bg2 {[%clk 00:01:42]} {[%emt 00:00:29]}
Nxg4 {[%clk 00:00:36]} {[%emt 00:00:35]} 64. Kh3 {[%clk 00:02:11]} Nh6 {[%clk
00:00:41]} {[%emt 00:00:25]} 65. Rf4 {[%clk 00:00:44]} {[%emt 00:01:57]} Qe6
{[%clk 00:01:10]} 66. Kxh4 {[%clk 00:01:09]} {[%emt 00:00:05]} Nf5 {[%clk
00:01:19]} {[%emt 00:00:22]} 67. Rxf5 {[%clk 00:01:38]} {[%emt 00:00:01]} Qxf5
{[%clk 00:01:43]} {[%emt 00:00:06]} 68. Kg3 {[%clk 00:02:03]} {[%emt 00:00:05]}
Qe5+ {[%clk 00:01:15]} {[%emt 00:00:58]} 69. Kh3 {[%clk 00:02:04]} {[%emt
00:00:28]} Qe2 {[%clk 00:00:41]} {[%emt 00:01:04]} 70. Kg3 {[%clk 00:02:18]}
{[%emt 00:00:16]} Kg7 {[%clk 00:00:46]} {[%emt 00:00:25]} 71. Ne3 {[%clk
00:02:16]} {[%emt 00:00:32]} Qh5 {[%clk 00:00:39]} {[%emt 00:00:37]} 72. Be4
{[%clk 00:01:56]} {[%emt 00:00:50]} Qg5+ {[%clk 00:00:49]} {[%emt 00:00:20]} 73.
Kf3 {[%clk 00:02:19]} {[%emt 00:00:07]} Kf8 {[%clk 00:00:59]} {[%emt 00:00:21]}
74. Nf5 {[%clk 00:02:27]} {[%emt 00:00:21]} Ke8 {[%clk 00:01:17]} {[%emt
00:00:12]} 75. Ng3 {[%clk 00:01:12]} {[%emt 00:01:44]} Kd7 {[%clk 00:01:30]}
{[%emt 00:00:17]} 76. Bf5+ {[%clk 00:00:54]} {[%emt 00:00:49]} Kc6 {[%clk
00:01:59]} {[%emt 00:00:02]} 77. Bd3 {[%clk 00:00:50]} {[%emt 00:00:33]} Kd5
{[%clk 00:01:53]} {[%emt 00:00:35]} 78. Kg2 {[%clk 00:00:38]} {[%emt 00:00:43]}
Ke5 {[%clk 00:02:07]} {[%emt 00:00:17]} 79. Kf3 {[%clk 00:00:55]} {[%emt
00:00:11]} Qh6 {[%clk 00:02:02]} {[%emt 00:00:35]} 80. Kg2 {[%clk 00:01:17]}
{[%emt 00:00:08]} Qf4 {[%clk 00:01:54]} {[%emt 00:00:38]} 81. Be2 {[%clk
00:01:39]} {[%emt 00:00:08]} Qg5 {[%clk 00:00:36]} {[%emt 00:01:48]} 82. Bd3
{[%clk 00:01:15]} {[%emt 00:00:55]} Kd4 {[%clk 00:01:04]} {[%emt 00:00:02]} 83.
Be4 {[%clk 00:00:57]} {[%emt 00:00:48]} Qxg3+ {[%clk 00:00:57]} {[%emt
00:00:37]} 84. Kxg3 {[%clk 00:00:54]} {[%emt 00:00:33]} Kxe4 {[%clk 00:01:26]}
{[%emt 00:00:01]} 85. Kg4 {[%clk 00:00:50]} {[%emt 00:00:34]} f5 {[%clk
00:00:33]} {[%emt 00:01:24]} 86. Kg5 {[%clk 00:00:38]} {[%emt 00:00:40]} Ke5
{[%clk 00:00:41]} {[%emt 00:00:23]} 87. f3 {[%clk 00:00:44]} {[%emt 00:00:23]}
f4 {[%clk 00:00:54]} {[%emt 00:00:17]} 88. Kg4 {[%clk 00:01:00]} {[%emt
00:00:14]} f6 {[%clk 00:01:15]} {[%emt 00:00:09]} 0-1

[Event "FINAL CAMPEONATO ABSOLUTO DE AJEDREZ CHILE 2018"]
[Site "CENTRO CULTURAL LO PRADO, Chile"]
[Date "2018.02.28"]
[Round "7.4"]
[White "ABARCA GONZALEZ, Nicolas"]
[Black "HENRIQUEZ VILLAGRA, Cristobal"]
[Result "0-1"]
[TimeControl "90 minutos mas 30 segundos de incremento por movida"]
[BlackTitle "GM"]
[WhiteElo "2388"]
[BlackElo "2501"]

1. e4 {[%clk 01:30:58]} {[%emt 00:00:02]} c6 {[%clk 01:30:13]} {[%emt
00:00:48]} 2. d4 {[%clk 01:31:23]} {[%emt 00:00:04]} d5 {[%clk 01:30:38]}
{[%emt 00:00:05]} 3. e5 {[%clk 01:31:51]} {[%emt 00:00:03]} Bf5 {[%clk
01:31:02]} {[%emt 00:00:06]} 4. Nf3 {[%clk 01:32:20]} {[%emt 00:00:01]} e6
{[%clk 01:31:05]} {[%emt 00:00:27]} 5. Bd3 {[%clk 01:32:49]} {[%emt 00:00:01]}
Bxd3 {[%clk 01:16:46]} {[%emt 00:14:48]} 6. Qxd3 {[%clk 01:32:08]} {[%emt
00:01:11]} Qa5+ {[%clk 01:17:06]} {[%emt 00:00:11]} 7. Nbd2 {[%clk 01:32:15]}
{[%emt 00:00:23]} Qa6 {[%clk 01:10:56]} {[%emt 00:06:40]} 8. Ke2 {[%clk
01:24:33]} {[%emt 00:08:12]} Ne7 {[%clk 01:03:00]} {[%emt 00:08:25]} 9. a4
{[%clk 01:22:38]} {[%emt 00:02:26]} Ng6 {[%clk 01:01:51]} {[%emt 00:01:38]} 10.
g3 {[%clk 01:22:58]} {[%emt 00:00:10]} f6 {[%clk 00:59:32]} {[%emt 00:02:49]}
11. b3 {[%clk 01:15:45]} {[%emt 00:07:42]} Be7 {[%clk 00:46:44]} {[%emt
00:13:18]} 12. h4 {[%clk 00:59:47]} {[%emt 00:16:29]} Qxd3+ {[%clk 00:41:29]}
{[%emt 00:05:45]} 13. Kxd3 {[%clk 00:58:36]} {[%emt 00:01:41]} h5 {[%clk
00:41:53]} {[%emt 00:00:06]} 14. Re1 {[%clk 00:57:54]} {[%emt 00:01:12]} Kf7
{[%clk 00:40:37]} {[%emt 00:01:47]} 15. Ng1 {[%clk 00:48:38]} {[%emt 00:09:46]}
c5 {[%clk 00:39:28]} {[%emt 00:01:40]} 16. Ba3 {[%clk 00:38:42]} {[%emt
00:10:26]} Nc6 {[%clk 00:30:20]} {[%emt 00:09:37]} 17. exf6 {[%clk 00:37:31]}
{[%emt 00:01:41]} Bxf6 {[%clk 00:30:44]} {[%emt 00:00:05]} 18. Bxc5 {[%clk
00:37:48]} {[%emt 00:00:13]} b6 {[%clk 00:29:30]} {[%emt 00:01:45]} 19. Ba3
{[%clk 00:38:06]} {[%emt 00:00:11]} Nxd4 {[%clk 00:29:55]} {[%emt 00:00:05]} 20.
Bb2 {[%clk 00:32:31]} {[%emt 00:06:05]} Nxb3 {[%clk 00:27:02]} {[%emt
00:03:23]} 21. cxb3 {[%clk 00:31:18]} {[%emt 00:01:43]} Bxb2 {[%clk 00:27:29]}
{[%emt 00:00:03]} 22. Rab1 {[%clk 00:31:32]} {[%emt 00:00:16]} Bf6 {[%clk
00:27:50]} {[%emt 00:00:09]} 23. f4 {[%clk 00:32:01]} {[%emt 00:00:01]} Rac8
{[%clk 00:26:50]} {[%emt 00:01:30]} 24. Rbc1 {[%clk 00:32:18]} {[%emt
00:00:13]} e5 {[%clk 00:24:56]} {[%emt 00:02:24]} 25. fxe5 {[%clk 00:32:27]}
{[%emt 00:00:22]} Nxe5+ {[%clk 00:25:20]} {[%emt 00:00:05]} 26. Ke2 {[%clk
00:32:49]} {[%emt 00:00:07]} Ng4 {[%clk 00:25:25]} {[%emt 00:00:25]} 27. Kd3
{[%clk 00:18:38]} {[%emt 00:14:42]} Rhe8 {[%clk 00:25:02]} {[%emt 00:00:53]} 28.
Rxc8 {[%clk 00:16:56]} {[%emt 00:02:12]} Nf2+ {[%clk 00:22:32]} {[%emt
00:03:00]} 29. Kc2 {[%clk 00:17:22]} {[%emt 00:00:05]} Rxc8+ {[%clk 00:22:58]}
{[%emt 00:00:03]} 30. Kb1 {[%clk 00:17:51]} {[%emt 00:00:02]} Rc3 {[%clk
00:21:38]} {[%emt 00:01:50]} 31. Ngf3 {[%clk 00:15:52]} {[%emt 00:02:28]} Ne4
{[%clk 00:21:38]} {[%emt 00:00:31]} 32. Rg1 {[%clk 00:15:56]} {[%emt 00:00:26]}
Nc5 {[%clk 00:21:20]} {[%emt 00:00:47]} 33. Ng5+ {[%clk 00:07:42]} {[%emt
00:08:44]} Bxg5 {[%clk 00:18:34]} {[%emt 00:03:17]} 34. hxg5 {[%clk 00:08:10]}
{[%emt 00:00:01]} Ne4 {[%clk 00:18:57]} {[%emt 00:00:07]} 35. Nxe4 {[%clk
00:02:17]} {[%emt 00:06:23]} dxe4 {[%clk 00:19:25]} {[%emt 00:00:01]} 36. Kb2
{[%clk 00:02:43]} {[%emt 00:00:04]} Rd3 {[%clk 00:14:14]} {[%emt 00:05:41]} 37.
Rc1 {[%clk 00:00:42]} {[%emt 00:02:32]} Rd2+ {[%clk 00:14:05]} {[%emt
00:00:39]} 38. Kc3 {[%clk 00:00:50]} {[%emt 00:00:22]} Rd7 {[%clk 00:14:30]}
{[%emt 00:00:05]} 39. Re1 {[%clk 00:01:06]} {[%emt 00:00:13]} Rd3+ {[%clk
00:14:51]} {[%emt 00:00:10]} 40. Kc4 {[%clk 00:01:33]} {[%emt 00:00:03]} Rxg3
{[%clk 00:15:17]} {[%emt 00:00:04]} 41. Kd4 {[%clk 00:01:09]} {[%emt 00:00:55]}
Rxb3 {[%clk 00:15:35]} {[%emt 00:00:12]} 42. Kxe4 {[%clk 00:00:40]} {[%emt
00:00:58]} Kg6 {[%clk 00:16:00]} {[%emt 00:00:05]} 43. Kd5 {[%clk 00:00:54]}
{[%emt 00:00:17]} Rb4 {[%clk 00:16:16]} {[%emt 00:00:14]} 44. Re6+ {[%clk
00:00:34]} {[%emt 00:00:50]} Kxg5 {[%clk 00:16:42]} {[%emt 00:00:05]} 45. Re7
{[%clk 00:01:01]} {[%emt 00:00:03]} Rxa4 {[%clk 00:16:57]} {[%emt 00:00:15]} 46.
Rxg7 {[%clk 00:01:24]} {[%emt 00:00:06]} Kf4 {[%clk 00:16:53]} {[%emt
00:00:34]} 47. Rh7 {[%clk 00:01:21]} {[%emt 00:00:34]} Kg4 {[%clk 00:17:19]}
{[%emt 00:00:04]} 48. Rg7+ {[%clk 00:01:47]} {[%emt 00:00:04]} Kf3 {[%clk
00:17:32]} {[%emt 00:00:17]} 49. Rf7+ {[%clk 00:02:12]} {[%emt 00:00:05]} Kg3
{[%clk 00:17:38]} {[%emt 00:00:24]} 50. Rg7+ {[%clk 00:02:39]} {[%emt
00:00:04]} Kh2 {[%clk 00:17:55]} {[%emt 00:00:13]} 51. Rc7 {[%clk 00:03:00]}
{[%emt 00:00:09]} h4 {[%clk 00:18:21]} {[%emt 00:00:04]} 52. Ke5 {[%clk
00:03:13]} {[%emt 00:00:17]} h3 {[%clk 00:17:55]} {[%emt 00:00:56]} 53. Kf5
{[%clk 00:03:40]} {[%emt 00:00:03]} Kg1 {[%clk 00:18:01]} {[%emt 00:00:23]} 54.
Rc1+ {[%clk 00:04:06]} {[%emt 00:00:05]} Kf2 {[%clk 00:18:28]} {[%emt
00:00:03]} 55. Rc2+ {[%clk 00:04:25]} {[%emt 00:00:11]} Ke1 {[%clk 00:18:53]}
{[%emt 00:00:05]} 56. Kg5 {[%clk 00:04:12]} {[%emt 00:00:44]} Rb4 {[%clk
00:18:17]} {[%emt 00:01:06]} 57. Ra2 {[%clk 00:03:35]} {[%emt 00:01:06]} a5
{[%clk 00:18:35]} {[%emt 00:00:12]} 58. Ra3 {[%clk 00:04:02]} {[%emt 00:00:04]}
h2 {[%clk 00:18:23]} {[%emt 00:00:41]} 59. Ra1+ {[%clk 00:04:31]} {[%emt
00:00:01]} Kd2 {[%clk 00:17:36]} {[%emt 00:01:17]} 60. Ra2+ {[%clk 00:04:53]}
{[%emt 00:00:08]} Kc3 {[%clk 00:17:50]} {[%emt 00:00:15]} 61. Rxh2 {[%clk
00:05:09]} {[%emt 00:00:14]} a4 {[%clk 00:18:16]} {[%emt 00:00:05]} 62. Rh3+
{[%clk 00:05:12]} {[%emt 00:00:26]} Kc4 {[%clk 00:18:36]} {[%emt 00:00:10]} 63.
Kf4 {[%clk 00:04:37]} {[%emt 00:01:04]} Kd5+ {[%clk 00:18:58]} {[%emt
00:00:09]} 64. Kf5 {[%clk 00:05:02]} {[%emt 00:00:06]} Rb3 {[%clk 00:19:23]}
{[%emt 00:00:05]} 65. Rh1 {[%clk 00:05:24]} {[%emt 00:00:07]} Rf3 {[%clk
00:19:38]} {[%emt 00:00:15]} 66. Kg4 {[%clk 00:05:53]} {[%emt 00:00:01]} Rf8
{[%clk 00:20:02]} {[%emt 00:00:06]} 67. Kg5 {[%clk 00:04:21]} {[%emt 00:02:02]}
b5 {[%clk 00:20:24]} {[%emt 00:00:08]} 68. Kg6 {[%clk 00:04:40]} {[%emt
00:00:11]} Kc5 {[%clk 00:20:41]} {[%emt 00:00:13]} 69. Kg7 {[%clk 00:04:52]}
{[%emt 00:00:18]} Rf2 {[%clk 00:21:07]} {[%emt 00:00:04]} 70. Rh3 {[%clk
00:04:55]} {[%emt 00:00:27]} b4 {[%clk 00:21:30]} {[%emt 00:00:08]} 71. Rh5+
{[%clk 00:05:21]} {[%emt 00:00:04]} Kc4 {[%clk 00:21:56]} {[%emt 00:00:04]} 72.
Rh4+ {[%clk 00:05:48]} {[%emt 00:00:02]} Kc3 {[%clk 00:22:21]} {[%emt
00:00:05]} 73. Rh3+ {[%clk 00:06:12]} {[%emt 00:00:06]} Kb2 {[%clk 00:22:42]}
{[%emt 00:00:09]} 74. Rh4 {[%clk 00:06:36]} {[%emt 00:00:06]} Ka3 {[%clk
00:23:09]} {[%emt 00:00:03]} 0-1